bitfinex/quotes_ETHUSD_20250914
["timestamp","ask_amount","ask_price","bid_price","bid_amount"]
[1757862522142,0.792,4586.1,4585.1,0.47]
[1757862522341,0.792,4586.1,4585.2,2.18088676]
[1757862522640,0.792,4586.1,4585.1,0.47]
[1757862522953,3.792,4585.9,4584.9,0.47]
[1757862523149,4.19023382,4585.9,4584.9,0.47]
[1757862523950,4.19021174,4585.9,4584.9,0.47]
[1757862524157,4.19021174,4585.9,4585.0,2.18102425]
[1757862524339,4.19021174,4585.9,4584.9,0.47]
[1757862524340,0.792,4585.7,4585.1,2.18097477]
[1757862524540,0.792,4585.5,4585.2,0.47]
[1757862525173,0.792,4586.0,4585.4,0.3064]
[1757862525359,0.792,4585.8,4585.4,0.3064]
[1757862525546,0.742,4585.8,4585.5,0.47]
[1757862526893,1.673,4586.2,4585.7,0.3064]
[1757862527057,3.708,4586.1,4585.8,0.47]
[1757862527395,0.42531707,4587.2,4586.0,0.3064]
[1757862527548,0.42531707,4587.2,4586.7,2.18018282]
[1757862527549,1.674,4587.0,4586.7,2.18018282]
[1757862527775,1.87321261,4587.0,4586.9,0.3064]
[1757862527988,2.66521261,4587.0,4586.9,0.3064]
[1757862528317,1.87321261,4587.0,4586.9,0.7764]
[1757862528612,5.385,4587.0,4586.9,0.7764]
[1757862528822,5.58421261,4587.0,4586.9,0.7764]
[1757862529178,5.58421261,4587.0,4586.5,2.18030678]
[1757862529479,0.19921261,4586.9,4586.4,2.1803353]
[1757862529686,0.19921261,4586.9,4586.5,0.47]
[1757862529873,0.19921261,4586.9,4586.5,2.65029739]
[1757862530189,0.39892034,4586.9,4586.8,0.3064]
[1757862530704,0.39892034,4586.9,4586.6,2.65026226]
[1757862530705,0.1088,4586.8,4586.6,2.18026226]
[1757862531209,0.1088,4586.8,4586.7,2.97841887]
[1757862531469,4.01873825,4586.8,4586.7,4.02661887]
[1757862531590,3.8188,4586.8,4586.7,1.8246]
[1757862531785,4.01873825,4586.8,4586.7,0.3064]
[1757862531989,4.01873825,4586.8,4586.3,0.47]
[1757862532208,0.1088,4586.3,4585.8,1.5182]
[1757862532503,0.1088,4586.1,4586.0,2.18054949]
[1757862532708,3.8208,4586.1,4586.0,2.95694949]
[1757862533678,4.02073825,4586.1,4586.0,2.95694949]
[1757862533906,3.8188,4586.1,4586.0,4.00514949]
[1757862534208,4.01873825,4586.1,4586.0,4.00514949]
[1757862534410,0.30873825,4586.1,4586.0,4.00514949]
[1757862534613,0.19993825,4586.8,4586.7,2.18021671]
[1757862534811,4.01773825,4586.8,4586.7,2.18021671]
[1757862535014,0.792,4586.7,4585.9,0.1088]
[1757862535309,0.792,4585.9,4584.8,0.00100001]
[1757862535524,0.792,4585.7,4585.0,0.4388]
[1757862535696,0.792,4585.5,4585.0,0.4388]
[1757862535883,0.792,4585.5,4584.8,0.00100001]
[1757862535884,3.93293825,4585.4,4585.1,0.46060977]
[1757862536075,3.733,4585.4,4585.3,0.3064]
[1757862536280,3.93353723,4585.4,4584.8,0.00100001]
[1757862536510,0.20053723,4585.3,4584.9,2.18106374]
[1757862536807,0.20053723,4585.2,4584.9,0.4388]
[1757862537110,0.20053723,4585.1,4584.8,2.18208725]
[1757862537312,1.674,4585.8,4584.8,2.18208725]
[1757862537313,3.93353723,4585.0,4584.8,2.18208725]
[1757862537518,3.93453723,4584.9,4584.8,2.18208725]
[1757862537694,3.93453723,4584.9,4584.8,0.74620001]
[1757862537893,3.93453723,4584.9,4584.8,2.92732023]
[1757862538599,3.93453723,4584.9,4584.8,4.43927328]
[1757862539001,0.20053723,4584.9,4584.8,4.43927328]
[1757862540288,0.40134576,4584.9,4584.8,4.43927328]
[1757862540484,0.46207201,4586.6,4586.4,2.18035932]
[1757862540485,2.25159001,4586.5,4586.4,2.18035932]
[1757862540691,5.406,4586.5,4586.4,2.92605932]
[1757862540914,0.57759001,4587.0,4586.4,0.7457]
[1757862541113,5.406,4586.9,4586.5,2.18031178]
[1757862541311,0.12089537,4586.8,4586.5,2.18031178]
[1757862541518,0.12089537,4586.8,4586.6,2.18022691]
[1757862541912,3.732,4586.7,4585.8,0.987]
[1757862542116,0.12089537,4586.8,4585.9,0.47390597]
[1757862542320,1.674,4586.9,4586.8,2.18016918]
[1757862542518,5.405,4586.9,4586.8,2.92586918]
[1757862543415,1.674,4586.9,4586.8,2.92586918]
[1757862543619,5.404,4586.9,4586.8,2.92586918]
[1757862543935,1.674,4586.9,4586.8,2.92586918]
[1757862544131,5.404,4586.9,4586.8,2.92586918]
[1757862544315,6.495,4586.9,4585.5,5.18078726]
[1757862544630,1.674,4586.9,4585.9,0.4521]
[1757862544820,1.674,4586.9,4586.8,2.47376918]
[1757862544995,5.403,4586.9,4586.8,2.92586918]
[1757862545195,5.403,4586.9,4583.2,1.56186079]
[1757862545196,3.598,4586.1,4583.2,1.56186079]
[1757862545401,0.792,4583.2,4582.8,0.08]
[1757862545596,0.792,4583.0,4582.8,0.08]
[1757862546117,3.906,4582.9,4582.8,0.08]
[1757862546694,4.36875279,4582.9,4582.8,0.08]
[1757862546932,4.9463428,4582.9,4582.8,0.08]
[1757862547308,9.24775279,4582.9,4582.8,0.08]
[1757862547618,10.0170807,4582.9,4582.8,0.08]
[1757862548141,9.24775279,4582.9,4582.8,0.08]
[1757862548623,9.25975279,4582.9,4582.8,0.08]
[1757862548823,9.25975279,4582.9,4581.4,0.987]
[1757862548824,8.74301803,4582.9,4582.1,0.4521]
[1757862549029,3.792,4582.8,4582.1,0.4521]
[1757862549203,4.25475279,4582.8,4582.1,0.4521]
[1757862549409,3.792,4582.8,4582.4,2.18224494]
[1757862549730,1.04001803,4583.0,4582.6,2.18215537]
[1757862549924,3.91,4582.7,4582.6,0.4521]
[1757862550118,3.909,4582.7,4582.6,2.92786623]
[1757862550331,3.909,4582.7,4582.6,0.7457]
[1757862550645,3.909,4582.7,4582.3,2.18228534]
[1757862550811,3.909,4582.7,4582.4,2.18224865]
[1757862551124,3.909,4582.7,4582.5,2.18221282]
[1757862551330,0.792,4583.0,4582.3,2.182279]
[1757862551528,3.0,4582.8,4582.1,0.4521]
[1757862551728,0.792,4582.7,4581.8,0.987]
[1757862551928,0.792,4582.7,4581.5,0.4521]
[1757862552133,0.792,4582.7,4581.5,0.59601]
[1757862552296,0.792,4582.7,4582.1,2.18240147]
[1757862552629,0.3997005,4582.6,4582.1,2.18240147]
[1757862552833,0.792,4582.7,4582.1,2.18240147]
[1757862552834,4.3047005,4582.5,4582.1,2.18240147]
[1757862552999,0.3997005,4582.4,4581.6,2.18264361]
[1757862553199,4.10285025,4582.3,4582.2,2.18235781]
[1757862553399,0.31229491,4582.3,4582.2,2.18235781]
[1757862553699,0.31229491,4582.3,4582.2,2.47595781]
[1757862553901,0.19985025,4582.3,4582.2,3.93688138]
[1757862554104,0.19985025,4582.3,4582.2,3.91505781]
[1757862554413,3.901,4582.3,4582.2,3.91505781]
[1757862554814,3.901,4582.3,4582.2,2.92805781]
[1757862555343,3.901,4582.3,4582.2,2.18235781]
[1757862555836,0.1088,4582.4,4582.3,2.18231019]
[1757862556046,0.1088,4582.4,4582.3,3.64323329]
[1757862556248,0.19985025,4582.9,4582.8,2.18207209]
[1757862557139,3.19985025,4583.0,4582.6,2.18216732]
[1757862557337,3.39926923,4583.0,4582.9,2.18202448]
[1757862557544,0.39926923,4583.0,4582.9,2.47562448]
[1757862557842,3.894,4583.0,4582.9,2.19847341]
[1757862558046,0.1088,4582.9,4582.0,0.5609]
[1757862558354,3.993,4583.0,4582.0,0.5609]
[1757862558355,3.894,4583.0,4582.7,2.18211539]
[1757862558555,0.1088,4582.5,4582.2,2.18233729]
[1757862558857,3.893,4582.4,4581.8,2.18254834]
[1757862559143,3.893,4582.4,4581.6,0.72996536]
[1757862559144,0.1088,4582.0,4581.9,2.1825007]
[1757862559346,0.1088,4582.0,4581.0,0.4521]
[1757862559347,0.792,4581.9,4581.0,0.4521]
[1757862559549,0.1088,4581.2,4581.1,2.20471065]
[1757862559747,0.1088,4581.2,4581.1,2.95041065]
[1757862560037,0.1088,4581.2,4581.1,4.45874835]
[1757862560206,3.274,4581.2,4581.1,4.43691954]
[1757862560413,3.274,4581.2,4581.1,2.99781954]
[1757862560612,3.274,4581.2,4581.1,3.44991954]
[1757862561529,1.19145786,4582.1,4581.1,2.2540377]
[1757862561530,0.792,4582.0,4581.1,2.2540377]
[1757862561736,0.1088,4581.4,4581.2,0.8958]
[1757862561947,0.1088,4581.6,4581.5,2.18269125]
[1757862562151,1.675,4583.1,4583.0,2.18197687]
[1757862562312,1.675,4583.1,4581.5,1.75452691]
[1757862562313,1.675,4583.1,4581.8,1.4391]
[1757862562513,2.88,4583.0,4581.9,1.58301]
[1757862562842,3.07945786,4583.0,4582.9,2.18202448]
[1757862563047,3.07945786,4583.0,4582.4,0.4521]
[1757862563215,3.07945786,4583.0,4582.9,2.18202448]
[1757862564018,4.09345786,4583.0,4582.9,2.18202448]
[1757862564744,5.08545786,4583.0,4582.9,2.18202448]
[1757862564945,0.19945786,4583.0,4582.9,2.18202448]
[1757862565260,2.467,4583.1,4583.0,2.18197687]
[1757862565447,6.359,4583.1,4583.0,2.18197687]
[1757862565650,6.65745786,4583.1,4582.2,0.4521]
[1757862565812,0.19945786,4583.0,4582.8,2.18202507]
[1757862566157,0.099,4582.9,4582.5,2.18217195]
[1757862566362,1.784,4582.8,4582.1,2.18240018]
[1757862566565,2.18336541,4582.8,4582.1,2.18240018]
[1757862566848,2.18336541,4582.8,4581.4,0.4521]
[1757862567050,2.18336541,4582.8,4582.0,2.18241084]
[1757862567352,2.18336541,4582.8,4582.2,2.18234849]
[1757862567551,0.0996,4582.3,4582.2,2.18234849]
[1757862567855,3.9886,4582.3,4582.1,2.18236563]
[1757862568051,1.675,4582.2,4582.1,2.18236563]
[1757862568823,5.562,4582.2,4582.1,2.92806563]
[1757862569044,1.675,4582.2,4582.1,2.92806563]
[1757862569250,5.56,4582.2,4582.1,2.92806563]
[1757862569555,5.559,4582.2,4582.1,3.53782108]
[1757862569882,5.559,4582.2,4582.1,4.53112108]
[1757862570077,1.675,4582.2,4582.1,2.92806563]
[1757862570377,5.559,4582.2,4582.1,2.92806563]
[1757862570751,5.559,4582.2,4582.1,3.92136563]
[1757862571345,5.559,4582.2,4582.1,2.92806563]
[1757862571845,1.675,4582.2,4582.1,3.92136563]
[1757862572047,1.675,4582.2,4582.1,4.53175108]
[1757862572246,5.554,4582.2,4582.1,4.53175108]
[1757862572574,5.553,4582.2,4582.1,4.53175108]
[1757862574075,1.675,4582.2,4582.1,4.53175108]
[1757862574378,5.549,4582.2,4582.1,4.53175108]
[1757862575245,5.95266444,4582.2,4582.1,4.53175108]
[1757862576571,0.40366444,4582.2,4582.1,4.53175108]
[1757862577177,0.40366444,4582.2,4582.1,3.53845108]
[1757862577379,0.40366444,4582.2,4582.1,2.92806563]
[1757862579601,0.40366444,4582.2,4582.1,2.47596563]
[1757862579807,0.40366444,4582.2,4582.1,2.90526563]
[1757862581872,0.40366444,4582.2,4582.1,2.90346563]
[1757862583012,0.40366444,4582.4,4582.3,2.18231019]
[1757862583214,4.25866444,4582.4,4582.3,2.18231019]
[1757862583513,4.25866444,4582.4,4582.3,2.47311019]
[1757862583684,4.25766444,4582.4,4582.3,2.90241019]
[1757862584005,0.40366444,4582.4,4582.3,2.18231019]
[1757862584224,4.25766444,4582.4,4582.3,2.18231019]
[1757862584397,0.40366444,4582.4,4582.3,2.90241019]
[1757862584727,4.25556154,4582.4,4582.3,2.90241019]
[1757862585724,0.1088,4582.5,4582.3,4.50361777]
[1757862585926,1.675,4582.9,4582.6,2.18214384]
[1757862586128,0.12101768,4583.9,4583.8,2.18159605]
[1757862586426,3.854,4583.9,4583.8,2.20341201]
[1757862586627,0.1088,4583.9,4583.8,2.9756504]
[1757862586826,0.1088,4584.2,4583.9,2.18152914]
[1757862586989,0.1088,4584.2,4584.1,2.47225328]
[1757862587189,3.9618,4584.2,4584.1,2.47225328]
[1757862587385,0.1088,4584.2,4584.1,2.90155328]
[1757862587624,1.7838,4584.6,4584.5,2.18126295]
[1757862587874,5.6358,4584.6,4584.5,2.18126295]
[1757862588327,3.9608,4584.6,4584.5,2.90136295]
[1757862589226,3.9598,4584.6,4584.5,2.90136295]
[1757862589429,3.9578,4584.6,4584.5,2.90136295]
[1757862589592,3.9578,4584.6,4584.5,2.18126295]
[1757862589794,0.792,4584.5,4581.6,0.9933]
[1757862590028,0.57726524,4583.9,4581.6,2.18264023]
[1757862590227,0.792,4583.5,4582.3,2.18231019]
[1757862590391,0.792,4583.2,4582.4,2.18222846]
[1757862590597,0.792,4583.0,4582.5,2.18221457]
[1757862590925,0.792,4583.0,4582.1,0.001]
[1757862590926,0.099,4582.6,4582.1,0.001]
[1757862591097,3.881,4582.5,4582.2,2.18234229]
[1757862591301,0.0996,4582.3,4582.2,2.18234229]
[1757862591500,0.792,4582.8,4582.4,2.18226256]
[1757862591707,0.792,4582.6,4582.5,2.18221208]
[1757862591911,0.792,4582.6,4582.1,0.001]
[1757862591912,1.9365,4582.6,4582.1,0.001]
[1757862592105,4.771,4582.6,4582.1,0.001]
[1757862592310,1.0455,4582.5,4582.4,2.18226256]
[1757862592738,1.1445,4582.5,4582.4,2.18226256]
[1757862592996,0.792,4582.6,4582.5,2.18221494]
[1757862593198,4.671,4582.6,4582.5,2.18221494]
[1757862593498,4.669,4582.6,4582.5,2.18221494]
[1757862593731,1.0,4582.6,4582.1,0.001]
[1757862594042,0.099,4582.2,4582.1,2.18340544]
[1757862594205,3.875,4582.2,4582.1,2.18340544]
[1757862594896,1.0,4582.5,4582.1,2.18340544]
[1757862595093,3.873,4582.4,4582.3,2.18231019]
[1757862595533,3.9726,4582.4,4582.3,2.18231019]
[1757862595923,4.9726,4582.4,4582.3,2.18231019]
[1757862597111,3.873,4582.4,4582.3,2.18231019]
[1757862597645,0.792,4582.8,4582.1,2.18339336]
[1757862597646,0.792,4582.8,4582.7,2.18211971]
[1757862597856,0.891,4582.8,4582.7,2.18211971]
[1757862598146,3.967,4582.8,4582.7,2.18211971]
[1757862598351,3.868,4582.8,4582.7,2.18211971]
[1757862598729,2.467,4582.9,4582.8,2.18207209]
[1757862599042,6.333,4582.9,4582.8,2.18207209]
[1757862599750,5.541,4582.9,4582.8,2.90387209]
[1757862600698,5.536,4582.9,4582.8,2.90387209]
[1757862601005,1.7838,4582.9,4582.8,2.90387209]
[1757862601204,5.536,4582.9,4582.8,3.41247127]
[1757862601898,1.675,4582.9,4582.8,4.36747127]
[1757862602103,3.859,4583.2,4582.9,2.18202448]
[1757862602426,3.859,4583.2,4583.1,2.47332926]
[1757862602637,2.467,4583.8,4583.7,2.18164365]
[1757862602957,2.467,4583.8,4583.7,2.47304365]
[1757862603114,6.325,4583.8,4583.7,2.90344365]
[1757862603317,2.467,4583.8,4583.7,2.90344365]
[1757862603517,6.324,4583.8,4583.7,2.90344365]
[1757862604013,0.002,4584.6,4584.5,2.18126295]
[1757862604473,0.002,4584.6,4584.5,2.92487557]
[1757862604762,0.002,4584.6,4584.5,3.87987557]
[1757862605563,1.675,4585.5,4585.2,2.18092994]
[1757862605564,3.861,4585.3,4585.2,2.18092994]
[1757862605767,3.861,4585.3,4585.2,2.47232994]
[1757862606052,3.861,4585.3,4585.2,2.90272994]
[1757862606764,3.861,4585.3,4585.2,2.18092994]
[1757862607457,3.96,4585.3,4583.5,2.18173517]
[1757862607681,1.9266,4585.2,4583.3,1.3854]
[1757862607819,0.792,4585.0,4584.2,2.18137708]
[1757862608137,0.099,4584.3,4584.2,2.18137708]
[1757862608333,4.65,4584.4,4584.3,2.18134629]
[1757862608648,0.792,4584.3,4582.8,0.081]
[1757862608816,1.0518,4582.9,4582.8,0.081]
[1757862609024,7.5676,4582.9,4582.8,0.081]
[1757862609266,7.5702,4582.9,4582.8,0.081]
[1757862609961,3.6996,4582.9,4582.8,0.081]
[1757862610265,7.5666,4582.9,4582.8,0.081]
[1757862611450,2.467,4582.9,4582.8,0.081]
[1757862611965,6.33,4582.9,4582.8,0.081]
[1757862613621,6.33,4582.9,4582.8,2.26307209]
[1757862614573,6.76858622,4582.9,4582.8,2.26307209]
[1757862614755,6.33,4582.9,4582.8,2.26307209]
[1757862615624,2.467,4582.9,4582.8,2.26307209]
[1757862615823,6.323,4582.9,4582.8,2.26307209]
[1757862616348,6.323,4582.9,4582.8,0.081]
[1757862617033,6.422,4582.9,4582.8,0.081]
[1757862617654,2.467,4582.9,4582.8,2.26307209]
[1757862617825,6.323,4582.9,4582.8,2.26307209]
[1757862618248,6.323,4582.9,4582.8,0.081]
[1757862618981,10.67706188,4582.9,4582.8,0.081]
[1757862619192,13.52253425,4582.9,4582.8,0.081]
[1757862620460,11.34050977,4582.9,4582.8,0.081]
[1757862620893,13.52253425,4582.9,4582.8,0.081]
[1757862621458,7.32270977,4582.9,4582.8,0.081]
[1757862621654,10.71106252,4582.9,4582.8,0.081]
[1757862621881,11.33550977,4582.9,4582.8,0.081]
[1757862622180,13.51753425,4582.9,4582.8,0.081]
[1757862622368,11.17370977,4582.9,4582.8,0.081]
[1757862623183,7.32270977,4582.9,4582.8,0.081]
[1757862623780,10.70506252,4582.9,4582.8,0.081]
[1757862624003,11.32950977,4582.9,4582.8,0.081]
[1757862624152,13.51153425,4582.9,4582.8,0.081]
[1757862624785,14.81853425,4582.9,4582.8,0.081]
[1757862624961,20.05453425,4582.9,4582.8,0.081]
[1757862625164,0.792,4581.7,4580.8,0.08]
[1757862625400,0.792,4581.7,4580.0,0.1]
[1757862625401,2.3588,4580.9,4580.0,0.1]
[1757862625611,2.3588,4580.9,4576.8,0.08]
[1757862625612,1.307,4580.2,4578.9,0.4304]
[1757862625773,1.307,4580.2,4577.1,1.68407468]
[1757862625774,3.78390977,4580.7,4579.0,1.3854]
[1757862626102,0.792,4580.4,4579.1,1.55377835]
[1757862626302,3.792,4580.2,4579.2,1.3854]
[1757862626469,0.792,4580.0,4579.2,1.3854]
[1757862626672,0.792,4580.0,4579.9,2.47485378]
[1757862626893,2.18229661,4582.4,4579.9,2.47485378]
[1757862626894,0.32044949,4581.0,4580.2,2.18330561]
[1757862627108,1.43422068,4581.3,4580.6,2.18310758]
[1757862627109,3.792,4580.8,4580.6,2.18310758]
[1757862627275,3.857,4580.7,4579.9,1.42083881]
[1757862627468,3.857,4580.7,4580.0,0.4304]
[1757862627804,4.1352,4581.8,4580.9,2.18296232]
[1757862627805,3.0,4581.8,4580.9,2.18296232]
[1757862627972,0.46942608,4582.2,4581.1,2.47428184]
[1757862628167,3.858,4581.2,4581.1,2.90468184]
[1757862628368,3.858,4581.2,4581.1,3.85968184]
[1757862628572,3.858,4581.2,4581.1,0.2914]
[1757862628801,0.1088,4581.1,4580.5,1.3854]
[1757862629001,0.792,4581.0,4580.9,2.18296511]
[1757862629701,0.9008,4580.9,4580.8,2.18302479]
[1757862629894,4.652,4580.9,4580.8,2.64562479]
[1757862630096,4.652,4580.9,4580.8,2.93822479]
[1757862630306,0.792,4580.8,4580.0,3.13837771]
[1757862630489,0.792,4580.8,4580.2,2.18331077]
[1757862631007,0.792,4580.8,4580.0,1.4253]
[1757862631178,0.792,4580.8,4580.5,2.18316222]
[1757862631376,0.792,4580.8,4580.7,2.18307245]
[1757862632010,0.792,4580.8,4580.5,2.18314426]
[1757862632306,0.792,4580.8,4580.6,2.18311615]
[1757862632504,0.792,4580.8,4580.7,2.18307245]
[1757862632807,3.891,4580.8,4580.0,0.4703]
[1757862633015,4.8454,4580.8,4580.2,2.18330856]
[1757862633219,3.891,4580.8,4580.3,2.18325115]
[1757862633416,3.891,4580.8,4579.9,0.4703]
[1757862633618,3.891,4580.8,4579.4,1.0115]
[1757862633619,3.891,4580.8,4579.5,0.4703]
[1757862633783,3.792,4580.6,4579.5,0.4703]
[1757862634103,3.792,4580.6,4578.2,0.4703]
[1757862634104,0.792,4580.1,4578.2,0.4703]
[1757862634302,0.792,4579.9,4578.2,2.65455219]
[1757862634502,0.792,4579.9,4579.1,2.18383288]
[1757862635115,0.792,4579.9,4579.1,2.18383114]
[1757862635418,3.792,4579.7,4579.1,2.18382198]
[1757862635922,3.792,4579.7,4578.8,0.08]
[1757862636108,3.792,4579.7,4579.0,2.18385126]
[1757862636305,3.792,4579.7,4578.8,0.08]
[1757862636509,3.85,4579.6,4578.9,2.18393063]
[1757862636693,0.792,4579.5,4579.4,2.18369218]
[1757862637030,0.57737099,4581.0,4580.0,2.18336986]
[1757862637323,0.4739,4584.3,4582.6,2.18216732]
[1757862637488,3.541,4582.9,4582.7,1.03332119]
[1757862637683,3.541,4582.9,4582.7,0.02182119]
[1757862637888,0.8542,4582.8,4581.2,1.0115]
[1757862638094,1.639,4582.7,4582.3,2.18228802]
[1757862638320,1.639,4582.7,4581.2,1.0115]
[1757862638321,0.4719,4582.6,4582.4,2.18224997]
[1757862638520,1.676,4582.5,4582.4,2.18224997]
[1757862638697,5.615,4582.5,4582.4,2.18224997]
[1757862639496,5.615,4582.5,4582.4,2.18226256]
[1757862640227,0.792,4582.4,4582.2,2.18231625]
[1757862640633,4.73,4582.3,4582.2,2.18231625]
[1757862641517,1.676,4582.5,4582.2,2.18231625]
[1757862641705,1.676,4582.5,4582.4,2.18226256]
[1757862641905,5.611,4582.5,4582.4,2.18226256]
[1757862642123,1.676,4582.5,4582.4,2.18226256]
[1757862642297,5.609,4582.5,4582.4,2.18226256]
[1757862642698,5.609,4582.5,4582.4,3.19376256]
[1757862642900,5.608,4582.5,4582.4,3.7335528]
[1757862643630,5.606,4582.5,4582.4,3.7335528]
[1757862644304,5.606,4582.5,4582.4,2.7220528]
[1757862644640,5.606,4582.5,4582.4,2.18226256]
[1757862646024,0.08,4582.8,4582.2,2.18231625]
[1757862646237,0.11218108,4585.4,4582.2,2.18231625]
[1757862646238,0.12028074,4584.4,4583.7,2.18164365]
[1757862646403,2.181,4584.5,4584.2,2.18140569]
[1757862646602,1.758,4584.8,4584.2,2.18140569]
[1757862646802,3.941,4584.4,4584.2,2.18140569]
[1757862647838,3.941,4584.4,4584.2,3.19290569]
[1757862648083,3.94,4584.3,4584.2,3.3955424]
[1757862648366,3.94,4584.3,4584.2,2.3840424]
[1757862648649,0.002,4584.3,4584.2,2.18140569]
[1757862648854,3.939,4584.3,4584.2,2.18140569]
[1757862650231,0.002,4584.3,4584.2,3.19290569]
[1757862650428,1.758,4584.8,4584.2,3.73252608]
[1757862650634,1.758,4584.8,4584.7,2.18116779]
[1757862650952,0.08,4586.8,4584.7,6.19266779]
[1757862651154,0.08,4586.8,4586.7,2.18021671]
[1757862651656,4.7902,4586.8,4586.7,2.18021671]
[1757862652019,4.014,4586.8,4586.7,2.18021671]
[1757862652451,0.08,4586.8,4586.7,2.18021671]
[1757862652778,3.786,4586.8,4586.7,2.18021671]
[1757862652954,0.08,4586.8,4586.7,2.18021671]
[1757862655250,0.08,4586.8,4586.7,3.21551671]
[1757862655954,0.08,4586.8,4586.7,3.21651671]
[1757862656152,0.08,4586.8,4586.7,3.32531671]
[1757862656556,0.08,4586.8,4586.7,2.29001671]
[1757862656874,0.08,4586.8,4586.7,2.28901671]
[1757862657032,0.08,4586.8,4586.7,2.18021671]
[1757862658860,0.08,4586.8,4586.7,2.18121671]
[1757862659155,0.08,4586.8,4586.7,3.65484864]
[1757862659549,0.08,4586.8,4586.7,3.76364864]
[1757862659744,1e-08,4586.8,4586.7,6.76364864]
[1757862660244,1e-08,4587.0,4586.9,2.18012165]
[1757862660563,1e-08,4587.0,4586.9,6.78789989]
[1757862660751,1e-08,4587.0,4586.9,7.75039868]
[1757862660949,1e-08,4587.0,4586.9,11.66439868]
[1757862662156,1e-08,4587.0,4586.9,2.18012165]
[1757862662728,0.87880001,4587.0,4586.9,2.18012165]
[1757862662949,1.92810001,4587.0,4586.3,0.1088]
[1757862663169,1e-08,4587.0,4586.9,2.18012165]
[1757862663745,0.45990001,4587.0,4586.9,2.18012165]
[1757862664574,0.77000001,4587.0,4586.9,2.18012165]
[1757862665164,0.77000001,4587.0,4586.2,0.1088]
[1757862665370,0.1088,4586.8,4586.2,0.1088]
[1757862665574,0.77000001,4587.0,4586.9,2.18012165]
[1757862665575,1e-08,4587.0,4586.9,2.18012165]
[1757862665871,1e-08,4587.0,4586.9,3.16442165]
[1757862666275,1e-08,4587.0,4586.9,6.18622286]
[1757862666468,1e-08,4587.0,4586.9,6.36567979]
[1757862666639,0.002,4587.8,4586.9,6.36567979]
[1757862666640,1e-08,4587.8,4587.7,2.17974148]
[1757862668374,1e-08,4587.8,4587.7,3.00749712]
[1757862668554,1e-08,4587.8,4587.7,4.01259453]
[1757862668760,1e-08,4587.8,4587.7,7.01259453]
[1757862669096,1e-08,4587.8,4587.7,6.99079712]
[1757862669390,1e-08,4587.8,4587.7,7.19206269]
[1757862669877,0.4599,4589.9,4587.7,2.01232121]
[1757862670063,0.4599,4589.9,4587.9,2.17964646]
[1757862670263,0.4599,4589.9,4589.8,2.17874417]
[1757862670469,1.8193,4589.9,4589.8,2.17874417]
[1757862671246,1.8193,4589.9,4587.9,3.0]
[1757862671486,2.3012,4589.8,4589.2,2.17902847]
[1757862671687,1.5092,4589.7,4589.3,2.17897628]
[1757862671887,3.1832,4589.7,4588.3,3.0]
[1757862672061,3.1832,4589.7,4588.2,2.17950394]
[1757862672062,7.0822,4589.7,4589.6,2.17883911]
[1757862672252,7.3923,4589.7,4588.4,3.899]
[1757862672582,0.792,4589.5,4587.9,0.27716823]
[1757862672799,0.4599,4589.4,4589.1,2.17904143]
[1757862673006,0.3101,4589.2,4589.1,2.17904143]
[1757862673147,1.8193,4589.2,4588.5,2.17933645]
[1757862673353,0.4599,4589.1,4588.9,2.17912674]
[1757862673602,0.4599,4589.1,4587.7,3.899]
[1757862673603,1.5092,4589.1,4587.7,3.899]
[1757862673777,0.4599,4589.0,4587.7,3.899]
[1757862673978,0.4599,4588.9,4588.6,2.17931125]
[1757862674163,0.3101,4588.7,4588.6,2.17931125]
[1757862674363,1.8193,4588.7,4588.6,2.17931125]
[1757862674599,1.8193,4588.7,4588.4,2.17939335]
[1757862674754,0.3101,4588.7,4588.4,2.17939335]
[1757862674954,1.5092,4588.6,4588.5,2.17936144]
[1757862675180,1.8193,4588.6,4587.3,3.0]
[1757862675384,2.3012,4588.5,4586.5,2.18026832]
[1757862675595,2.3012,4588.5,4587.7,2.17973628]
[1757862675795,0.3101,4587.8,4587.7,2.17973628]
[1757862675961,0.1088,4587.7,4586.7,0.1088]
[1757862676260,0.792,4587.3,4587.0,2.18006904]
[1757862676462,0.3101,4587.1,4587.0,2.18006904]
[1757862676679,1.8193,4587.1,4587.0,2.18006904]
[1757862676881,0.9008,4587.0,4585.6,2.18069926]
[1757862677079,6.359,4586.9,4586.6,2.18026269]
[1757862677291,6.338,4586.9,4586.7,2.18020371]
[1757862677492,5.567,4586.9,4586.8,2.26016918]
[1757862677665,1.7818,4586.9,4586.8,2.70420647]
[1757862678066,1.673,4586.9,4586.8,2.70520647]
[1757862678267,0.1088,4587.4,4587.3,2.17993155]
[1757862678503,5.566,4587.6,4587.5,2.17983651]
[1757862678703,5.68642739,4587.6,4587.5,2.17983651]
[1757862680387,1.79342739,4587.6,4587.5,2.17983651]
[1757862680691,5.562,4587.6,4587.5,2.17983651]
[1757862680893,1.79342739,4587.6,4587.5,2.17983651]
[1757862681071,5.562,4587.6,4587.5,2.17983651]
[1757862681272,5.68242739,4587.6,4587.5,2.17983651]
[1757862682703,6.14232739,4587.6,4587.5,2.17983651]
[1757862683629,5.67742739,4587.6,4587.5,2.17983651]
[1757862683779,0.12042739,4587.6,4587.5,3.60011332]
[1757862683983,0.002,4588.0,4587.9,2.17964646]
[1757862684290,0.002,4588.0,4587.9,2.20144292]
[1757862684486,0.002,4588.0,4587.9,4.02218919]
[1757862684875,0.002,4588.0,4587.9,4.00039273]
[1757862685893,0.002,4588.0,4587.9,4.02218919]
[1757862686090,0.002,4588.0,4587.9,7.02218919]
[1757862686384,0.002,4588.0,4587.9,7.00039273]
[1757862686917,0.002,4588.0,4587.9,9.89609273]
[1757862687486,0.002,4588.0,4587.9,9.89509273]